lending/lending_fUSD_20260310
["ID","MTS","AMOUNT","RATE_DAILY","PERIOD"]
[408144877,1773173242239,500.0,9.158e-05,2]
[408144878,1773173242523,151.0,0.00014158,2]
[408144879,1773173242724,859.03555763,9.158e-05,2]
[408144880,1773173242875,200.0,0.0001373,2]
[408144881,1773173243127,151.0,0.00014158,2]
[408144882,1773173243721,151.0,0.00014158,2]
[408144884,1773173244758,151.0,0.00014158,2]
[408144885,1773173244946,151.0,0.00014158,2]
[408144886,1773173245074,500.0,9.158e-05,2]
[408144887,1773173245556,151.0,0.00014158,2]
[408144888,1773173245602,500.0,9.158e-05,2]
[408144889,1773173246317,151.50524412,0.00014158,2]
[408144890,1773173248468,151.0,0.00014158,2]
[408144891,1773173248682,500.0,9.158e-05,2]
[408144892,1773173249150,151.0,0.00014158,2]
[408144893,1773173249937,151.0,0.00014158,2]
[408144894,1773173250550,151.0,0.00014158,2]
[408144895,1773173251177,151.0,0.00014158,2]
[408144896,1773173251758,154.10952011,0.00014158,2]
[408144920,1773173373091,-165.0,0.00014158,2]
[408144921,1773173373111,-160.0,0.00014158,2]
[408144922,1773173373132,-50.91277847,0.00014158,2]
[408144923,1773173401640,1129.0,0.00014158,2]
[408144934,1773173432138,-160.0,0.00014158,2]
[408144935,1773173432147,-118.52586619,0.00014158,2]
[408144936,1773173432191,-46.47413381,0.00014158,2]
[408144937,1773173432200,-314.33442764,0.00014158,2]
[408144938,1773173432246,-285.66557236,0.00014158,2]
[408144939,1773173432255,-2100.84340556,0.00014158,2]
[408144940,1773173432265,-250.0,0.00014158,2]
[408144941,1773173432274,-349.32560752,0.00014158,2]
[408144942,1773173432283,-600.0,0.00014159,2]
[408144943,1773173432292,-600.0,0.00014159,2]
[408144944,1773173432302,-600.0,0.00014159,2]
[408144945,1773173432312,-250.0,0.00014159,2]
[408144946,1773173432322,-300.0,0.00014163,2]
[408144947,1773173432331,-1200.0,0.00014164,2]
[408144948,1773173432341,-8610.01239405,0.000142,2]
[408144949,1773173432351,-237.08006912,0.00014257,2]
[408144950,1773173432361,-4000.0,0.00014291,2]
[408144951,1773173432371,-10223.35,0.00014312,2]
[408144952,1773173432380,-150.0,0.00014389,2]
[408144953,1773173432390,-6132.1684006,0.0001439,2]
[408144954,1773173432401,-4242.72089811,0.0001439,2]
[408144955,1773173432411,-237.08006912,0.0001445,2]
[408144956,1773173432420,-500.0,0.0001445,2]
[408144957,1773173432429,-1403.21204333,0.00014498,2]
[408144958,1773173432439,-1735.15270621,0.00014499,2]
[408144959,1773173432448,-5943.01687586,0.00014499,2]
[408144960,1773173432457,-15450.50588445,0.00014499,2]
[408144961,1773173432467,-6163.28143985,0.000145,2]
[408144962,1773173432477,-1300.0,0.000145,5]
[408144963,1773173432486,-765.0,0.00014503,2]
[408144964,1773173432495,-197.0,0.00014503,2]
[408144965,1773173432505,-1987.0,0.00014525,2]
[408144966,1773173432515,-1382.0,0.00014532,2]
[408144967,1773173432523,-1946.4807,0.00014548,2]
[408144968,1773173432532,-1735.15270621,0.0001455,2]
[408144969,1773173432542,-180.0,0.0001455,2]
[408144970,1773173432553,-78724.36339505,0.0001455,2]
[408144971,1773173432562,-1959.0,0.00014554,2]
[408144972,1773173432571,-1532.0,0.00014559,2]
[408144973,1773173432580,-500.0,0.00014573,2]
[408144974,1773173432590,-500.0,0.00014573,2]
[408144975,1773173432599,-500.37983606,0.00014573,2]
[408144976,1773173432609,-500.0,0.00014573,2]
[408144977,1773173432618,-500.0,0.00014573,2]
[408144978,1773173432627,-500.0,0.00014573,2]
[408144979,1773173432639,-500.0,0.00014573,2]
[408144980,1773173432649,-456.67098084,0.00014573,2]
[408144981,1773173432659,-500.0,0.00014573,2]
[408144982,1773173432668,-500.0,0.00014573,2]
[408144983,1773173432679,-500.0,0.00014573,2]
[408144984,1773173432688,-500.0,0.00014573,2]
[408144985,1773173432697,-500.0,0.00014573,2]
[408144986,1773173432718,-163.96545935,0.00014573,2]
[408144987,1773173432728,-500.0,0.00014573,2]
[408144988,1773173432738,-500.0,0.00014573,2]
[408144989,1773173432748,-500.0,0.00014573,2]
[408144990,1773173432759,-500.31767514,0.00014573,2]
[408144991,1773173432768,-500.0,0.00014573,2]
[408144992,1773173432778,-156.93,0.00014587,2]
[408144993,1773173432787,-765.99,0.00014588,2]
[408144994,1773173432796,-765.99,0.00014588,2]
[408144995,1773173432806,-765.99,0.00014588,2]
[408144996,1773173432815,-765.99,0.00014588,2]
[408144997,1773173432824,-765.99,0.00014588,2]
[408144998,1773173432834,-19190.31383104,0.00014598,2]
[408145005,1773173438176,-978733.71186896,0.00014598,2]
[408145006,1773173438186,-500.0,0.00014599,2]
[408145007,1773173438195,-500.0,0.00014599,2]
[408145008,1773173438204,-500.0,0.00014599,2]
[408145009,1773173438213,-333.18627222,0.00014599,2]
[408145010,1773173438223,-675.20290644,0.000146,2]
[408145011,1773173438232,-1735.15270621,0.000146,2]
[408145012,1773173438242,-314.49272085,0.000146,2]
[408145013,1773173438251,-842.73671246,0.000146,2]
[408145014,1773173438260,-388.66679334,0.000146,2]
[408145015,1773173438269,-2600.0,0.000146,5]
[408145016,1773173438278,-652.32837163,0.00014613,2]
[408145017,1773173438286,-198.72924207,0.00014623,5]
[408145018,1773173438296,-1288.40838767,0.00014623,5]
[408145019,1773173438305,-194.00601262,0.00014623,2]
[408145020,1773173438314,-619.59641677,0.00014623,2]
[408145021,1773173438323,-459.34390399,0.00014623,2]
[408145022,1773173438332,-425.8071,0.00014623,2]
[408145023,1773173438340,-791.01127459,0.00014623,2]
[408145024,1773173438349,-500.0,0.00014623,2]
[408145025,1773173438358,-791.01127459,0.00014623,2]
[408145026,1773173438367,-493.39386795,0.00014623,2]
[408145027,1773173438376,-500.0,0.00014623,2]
[408145028,1773173438385,-791.01127459,0.00014623,2]
[408145029,1773173438394,-791.01127459,0.00014623,2]
[408145030,1773173438402,-791.01127459,0.00014623,2]
[408145031,1773173438411,-791.01127459,0.00014623,2]
[408145032,1773173438420,-791.01127459,0.00014623,2]
[408145033,1773173438429,-791.01127459,0.00014623,2]
[408145034,1773173438438,-791.01127459,0.00014623,2]
[408145035,1773173438447,-791.01127459,0.00014623,2]
[408145036,1773173438456,-791.01127459,0.00014623,2]
[408145037,1773173438465,-791.01127459,0.00014623,2]
[408145038,1773173438478,-791.01127459,0.00014623,2]
[408145039,1773173438487,-791.01127459,0.00014623,2]
[408145040,1773173438496,-791.01127459,0.00014623,2]
[408145042,1773173438506,-791.01127459,0.00014623,2]
[408145043,1773173438516,-791.01127459,0.00014623,2]
[408145044,1773173438526,-791.01127459,0.00014623,2]
[408145046,1773173438535,-791.01127459,0.00014623,2]
[408145048,1773173438545,-791.01127459,0.00014623,2]
[408145050,1773173438555,-791.01127459,0.00014623,2]
[408145052,1773173438564,-791.01127459,0.00014623,2]
[408145054,1773173438574,-791.01127459,0.00014623,2]
[408145057,1773173438584,-791.01127459,0.00014623,2]
[408145060,1773173438593,-791.01127459,0.00014623,2]
[408145063,1773173438602,-791.01127459,0.00014623,2]
[408145065,1773173438611,-791.01127459,0.00014623,2]
[408145067,1773173438620,-791.01127459,0.00014623,2]
[408145069,1773173438630,-791.01127459,0.00014623,2]
[408145071,1773173438643,-791.01127459,0.00014623,2]
[408145073,1773173438653,-791.01127459,0.00014623,2]
[408145075,1773173438663,-791.01127459,0.00014623,2]
[408145077,1773173438672,-791.01127459,0.00014623,2]
[408145079,1773173438682,-791.01127459,0.00014623,2]
[408145081,1773173438692,-791.01127459,0.00014623,2]
[408145083,1773173438701,-791.01127459,0.00014623,2]
[408145085,1773173438711,-791.01127459,0.00014623,2]
[408145087,1773173438721,-791.01127459,0.00014623,2]
[408145090,1773173438735,-791.01127459,0.00014623,2]
[408145092,1773173438745,-791.01127459,0.00014623,2]
[408145094,1773173438755,-791.01127459,0.00014623,2]
[408145096,1773173438764,-791.01127459,0.00014623,2]
[408145097,1773173438773,-791.01127459,0.00014623,2]
[408145098,1773173438783,-791.01127459,0.00014623,2]
[408145099,1773173438794,-791.01127459,0.00014623,2]
[408145100,1773173438804,-791.01127459,0.00014623,2]
[408145101,1773173438814,-781.36479564,0.00014623,2]
[408145102,1773173438823,-781.36479564,0.00014623,2]
[408145103,1773173438833,-781.36479564,0.00014623,2]
[408145104,1773173438842,-781.36479564,0.00014623,2]
[408145105,1773173438854,-781.36479564,0.00014623,2]
[408145106,1773173438863,-781.36479564,0.00014623,2]
[408145107,1773173438872,-781.36479564,0.00014623,2]
[408145108,1773173438882,-781.36479564,0.00014623,2]
[408145109,1773173438897,-781.36479564,0.00014623,2]
[408145110,1773173438906,-781.36479564,0.00014623,2]
[408145111,1773173438915,-781.36479564,0.00014623,2]
[408145112,1773173438925,-781.36479564,0.00014623,2]
[408145113,1773173438934,-781.36479564,0.00014623,2]
[408145114,1773173438944,-781.36479564,0.00014623,2]
[408145115,1773173438953,-781.36479564,0.00014623,2]
[408145116,1773173438964,-781.36479564,0.00014623,2]
[408145117,1773173438977,-781.36479564,0.00014623,2]
[408145118,1773173438986,-781.36479564,0.00014623,2]
[408145119,1773173438996,-781.36479564,0.00014623,2]
[408145120,1773173439005,-781.36479564,0.00014623,2]
[408145121,1773173439014,-781.36479564,0.00014623,2]
[408145122,1773173439024,-781.36479564,0.00014623,2]
[408145123,1773173439033,-781.36479564,0.00014623,2]
[408145124,1773173439042,-781.36479564,0.00014623,2]
[408145125,1773173439051,-781.36479564,0.00014623,2]
[408145126,1773173439060,-781.36479564,0.00014623,2]
[408145127,1773173439069,-781.36479564,0.00014623,2]
[408145128,1773173439078,-781.36479564,0.00014623,2]
[408145129,1773173439087,-781.36479564,0.00014623,2]
[408145130,1773173439096,-781.36479564,0.00014623,2]
[408145131,1773173439106,-781.36479564,0.00014623,2]
[408145132,1773173439114,-781.36479564,0.00014623,2]
[408145133,1773173439123,-781.36479564,0.00014623,2]
[408145134,1773173439133,-781.36479564,0.00014623,2]
[408145135,1773173439142,-805.48099303,0.00014623,2]
[408145136,1773173439151,-805.48099303,0.00014623,2]
[408145137,1773173439160,-805.48099303,0.00014623,2]
[408145138,1773173439169,-805.48099303,0.00014623,2]
[408145139,1773173439178,-805.48099303,0.00014623,2]
[408145140,1773173439187,-805.48099303,0.00014623,2]
[408145141,1773173439196,-805.48099303,0.00014623,2]
[408145142,1773173439205,-805.48099303,0.00014623,2]
[408145143,1773173439215,-805.48099303,0.00014623,2]
[408145144,1773173439226,-500.0,0.00014623,2]
[408145145,1773173439237,-500.0,0.00014623,2]
[408145146,1773173439246,-500.0,0.00014623,2]
[408145147,1773173439256,-500.0,0.00014623,2]
[408145148,1773173439265,-596.9462694,0.00014623,2]
[408145149,1773173439274,-500.0,0.00014623,2]
[408145150,1773173439283,-500.0,0.00014623,2]
[408145151,1773173439292,-449.03751,0.00014623,2]
[408145152,1773173439302,-500.0,0.00014623,2]
[408145153,1773173439311,-500.0,0.00014623,2]
[408145154,1773173439321,-500.0,0.00014623,2]
[408145155,1773173439330,-500.0,0.00014623,2]
[408145156,1773173439339,-181.34715684,0.00014623,2]
[408145157,1773173439348,-500.0,0.00014623,2]
[408145158,1773173439358,-500.0,0.00014623,2]
[408145159,1773173439368,-500.0,0.00014623,2]
[408145160,1773173439377,-235.20880529,0.00014623,2]
[408145161,1773173439387,-518.73097583,0.00014623,2]
[408145162,1773173439397,-500.0,0.00014623,2]
[408145163,1773173439407,-500.0,0.00014623,2]
[408145164,1773173439416,-500.0,0.00014623,2]
[408145165,1773173439426,-500.0,0.00014623,2]
[408145166,1773173439435,-500.0,0.00014623,2]
[408145167,1773173439445,-500.0,0.00014623,2]
[408145168,1773173439454,-500.0,0.00014623,2]
[408145169,1773173439464,-500.0,0.00014623,2]
[408145170,1773173439474,-500.0,0.00014623,2]
[408145171,1773173439486,-500.0,0.00014623,2]
[408145172,1773173439495,-4476.99615743,0.00014623,2]
[408145173,1773173439505,-112253.5817882,0.00014624,2]
[408145174,1773173439514,-500.0,0.00014631,2]
[408145175,1773173439523,-4000.0,0.00014632,2]
[408145176,1773173439533,-2217.0,0.00014658,2]
[408145177,1773173439542,-567.49817501,0.00014658,2]
[408145178,1773173439551,-1585.0,0.00014659,2]
[408145179,1773173439561,-500.34430685,0.00014673,2]
[408145180,1773173439570,-627.75566029,0.00014673,2]
[408145181,1773173439579,-500.0,0.00014673,2]
[408145182,1773173439589,-500.0,0.00014673,2]
[408145183,1773173439598,-500.0,0.00014673,2]
[408145184,1773173439608,-164.68602851,0.00014673,2]
[408145185,1773173439617,-500.0,0.00014673,2]
[408145186,1773173439626,-500.0,0.00014673,2]
[408145187,1773173439636,-500.0,0.00014673,2]
[408145188,1773173439651,-500.0,0.00014673,2]
[408145189,1773173439660,-500.0,0.00014673,2]
[408145190,1773173439670,-438.17886325,0.00014673,2]
[408145191,1773173439679,-500.19933179,0.00014673,2]
[408145192,1773173439689,-158.89335882,0.00014673,2]
[408145193,1773173439698,-500.0,0.00014673,2]
[408145194,1773173439707,-500.0,0.00014673,2]
[408145195,1773173439717,-500.0,0.00014673,2]
[408145196,1773173439726,-500.0,0.00014673,2]
[408145197,1773173439735,-161.50637135,0.00014673,2]
[408145198,1773173439744,-210.19245283,0.00014673,2]
[408145199,1773173439755,-500.0,0.00014673,2]
[408145200,1773173439765,-162.45092924,0.00014673,2]
[408145201,1773173439774,-500.0,0.00014673,2]
[408145202,1773173439783,-500.0,0.00014673,2]
[408145203,1773173439793,-500.0,0.00014673,2]
[408145204,1773173439803,-500.0,0.00014673,2]
[408145205,1773173439812,-500.0,0.00014673,2]
[408145206,1773173439821,-311.58893439,0.00014673,2]
[408145207,1773173439830,-166.21138236,0.00014673,2]
[408145208,1773173439840,-162.16516283,0.00014673,2]
[408145209,1773173439849,-500.0,0.00014673,2]
[408145210,1773173439858,-500.0,0.00014673,2]
[408145211,1773173439868,-500.0,0.00014673,2]
[408145212,1773173439878,-500.0,0.00014673,2]
[408145213,1773173439887,-500.0,0.00014673,2]
[408145214,1773173439896,-500.0,0.00014673,2]
[408145215,1773173439905,-500.0,0.00014673,2]
[408145216,1773173439915,-516.85988717,0.00014673,2]
[408145217,1773173439924,-500.17118036,0.00014673,2]
[408145218,1773173439933,-555.93722716,0.00014673,2]
[408145219,1773173439943,-500.0,0.00014673,2]
[408145220,1773173439952,-500.0,0.00014673,2]
[408145221,1773173439961,-500.0,0.00014673,2]
[408145222,1773173439971,-500.0,0.00014673,2]
[408145223,1773173439981,-500.0,0.00014673,2]
[408145224,1773173439991,-500.0,0.00014673,2]
[408145225,1773173440000,-500.0,0.00014673,2]
[408145226,1773173440009,-500.0,0.00014673,2]
[408145227,1773173440019,-564.98385943,0.00014673,2]
[408145228,1773173440028,-500.0,0.00014673,2]
[408145229,1773173440037,-500.0,0.00014673,2]
[408145230,1773173440047,-500.0,0.00014684,2]
[408145231,1773173440056,-500.0,0.00014684,2]
[408145232,1773173440065,-500.0,0.00014684,2]
[408145233,1773173440074,-500.0,0.00014684,2]
[408145234,1773173440083,-500.0,0.00014684,2]
[408145235,1773173440093,-500.0,0.00014684,2]
[408145236,1773173440102,-500.0,0.00014684,2]
[408145237,1773173440112,-500.0,0.00014684,2]
[408145238,1773173440121,-500.0,0.00014684,2]
[408145239,1773173440130,-500.0,0.00014684,2]
[408145240,1773173440140,-3613.542,0.00014684,2]
[408145241,1773173440150,-172.706,0.00014684,2]
[408145242,1773173440159,-652.32837163,0.00014689,2]
[408145243,1773173440168,-312.0,0.00014689,2]
[408145244,1773173440177,-151.0,0.00014696,2]
[408145245,1773173440186,-153.4855772,0.00014698,2]
[408145246,1773173440196,-379.38278637,0.00014698,2]
[408145247,1773173440206,-385.84913095,0.00014698,2]
[408145248,1773173440215,-500.0,0.00014698,2]
[408145249,1773173440224,-500.0,0.00014698,2]
[408145250,1773173440233,-500.0,0.00014698,2]
[408145251,1773173440242,-354.77347597,0.00014698,2]
[408145252,1773173440251,-162.59262273,0.00014698,2]
[408145253,1773173440260,-165.36391326,0.00014698,2]
[408145254,1773173440270,-500.0,0.00014698,2]
[408145255,1773173440279,-294.90291827,0.00014698,2]
[408145257,1773173440289,-576.89,0.00014698,2]
[408145259,1773173440299,-576.89,0.00014698,2]
[408145261,1773173440308,-576.89,0.00014698,2]
[408145263,1773173440317,-576.89,0.00014698,2]
[408145265,1773173440326,-576.89,0.00014698,2]
[408145267,1773173440335,-576.89,0.00014698,2]
[408145269,1773173440344,-576.89,0.00014698,2]
[408145271,1773173440353,-576.89,0.00014698,2]
[408145273,1773173440363,-576.89,0.00014698,2]
[408145276,1773173440372,-576.89,0.00014698,2]
[408145277,1773173440382,-500.0,0.00014698,2]
[408145278,1773173440391,-500.0,0.00014698,2]
[408145279,1773173440401,-500.0,0.00014698,2]
[408145281,1773173440410,-500.0,0.00014698,2]
[408145283,1773173440420,-500.0,0.00014698,2]
[408145285,1773173440429,-500.0,0.00014698,2]
[408145286,1773173440438,-520.36800234,0.00014698,2]
[408145287,1773173440447,-500.0,0.00014698,2]
[408145288,1773173440456,-500.0,0.00014698,2]
[408145289,1773173440465,-500.0,0.00014698,2]
[408145290,1773173440476,-595.06336316,0.00014698,2]
[408145291,1773173440485,-500.0,0.00014698,2]
[408145292,1773173440494,-500.0,0.00014698,2]
[408145293,1773173440503,-500.0,0.00014698,2]
[408145294,1773173440513,-500.0,0.00014698,2]
[408145295,1773173440523,-500.0,0.00014698,2]
[408145296,1773173440532,-500.0,0.00014698,2]
[408145297,1773173440542,-500.0,0.00014698,2]
[408145298,1773173440551,-500.0,0.00014698,2]
[408145299,1773173440560,-500.0,0.00014698,2]
[408145300,1773173440569,-500.0,0.00014698,2]
[408145301,1773173440580,-500.0,0.00014698,2]
[408145302,1773173440589,-500.0,0.00014698,2]
[408145303,1773173440599,-500.0,0.00014698,2]
[408145304,1773173440608,-500.0,0.00014698,2]
[408145305,1773173440617,-500.0,0.00014698,2]
[408145306,1773173440627,-500.0,0.00014698,2]
[408145307,1773173440636,-291.03249604,0.00014698,2]
[408145308,1773173440648,-620.3,0.00014698,2]
[408145309,1773173440658,-500.0,0.00014698,2]
[408145310,1773173440668,-500.0,0.00014698,2]
[408145311,1773173440679,-500.0,0.00014698,2]
[408145312,1773173440689,-500.0,0.00014698,2]
[408145313,1773173440698,-500.0,0.00014698,2]
[408145314,1773173440707,-500.0,0.00014698,2]
[408145315,1773173440718,-500.0,0.00014698,2]
[408145316,1773173440729,-500.0,0.00014698,2]
[408145317,1773173440738,-630.81055911,0.00014698,2]
[408145318,1773173440747,-2500000.0,0.00014699,2]
[408145319,1773173440757,-3900.0,0.000147,5]
[408145320,1773173440767,-1102.0,0.00014718,2]
[408145321,1773173440776,-14225.5,0.0001474,2]
[408145322,1773173440785,-1478.61,0.00014765,2]
[408145323,1773173440794,-500.0,0.00014777,2]
[408145324,1773173440803,-500.0,0.00014777,2]
[408145325,1773173440812,-500.0,0.00014777,2]
[408145326,1773173440821,-500.0,0.00014777,2]
[408145327,1773173440830,-500.0,0.00014777,2]
[408145328,1773173440840,-500.0,0.00014777,2]
[408145329,1773173440849,-500.0,0.00014777,2]
[408145330,1773173440858,-500.0,0.00014777,2]
[408145332,1773173440870,-500.0,0.00014777,2]
[408145333,1773173440879,-500.0,0.00014777,2]
[408145334,1773173440888,-500.0,0.00014777,2]
[408145335,1773173440897,-500.0,0.00014777,2]
[408145336,1773173440907,-500.0,0.00014777,2]
[408145337,1773173440916,-500.0,0.00014777,2]
[408145339,1773173440925,-500.0,0.00014777,2]
[408145341,1773173440934,-500.0,0.00014777,2]
[408145342,1773173440945,-500.0,0.00014777,2]
[408145343,1773173440954,-500.0,0.00014777,2]
[408145344,1773173440963,-500.0,0.00014777,2]
[408145345,1773173440973,-500.0,0.00014777,2]
[408145346,1773173440984,-500.0,0.00014777,2]
[408145347,1773173440993,-500.0,0.00014777,2]
[408145348,1773173441002,-500.0,0.00014777,2]
[408145350,1773173441011,-500.0,0.00014777,2]
[408145352,1773173441021,-527.18458678,0.00014777,2]
[408145353,1773173441030,-32933.015,0.00014799,2]
[408145354,1773173441039,-5200.0,0.000148,5]
[408145355,1773173441049,-1489.0,0.00014828,2]
[408145356,1773173441059,-500.0,0.00014847,2]
[408145357,1773173441069,-15450.50588442,0.00014877,2]
[408145358,1773173441078,-500.0,0.00014898,2]
[408145359,1773173441087,-500.0,0.00014898,2]
[408145360,1773173441096,-500.0,0.00014898,2]
[408145361,1773173441105,-500.0,0.00014898,2]
[408145362,1773173441114,-536.80884023,0.00014899,2]
[408145363,1773173441123,-500.9565902,0.00014899,2]
[408145364,1773173441132,-500.0,0.00014899,2]
[408145365,1773173441141,-500.0,0.00014899,2]
[408145366,1773173441150,-500.0,0.00014899,2]
[408145367,1773173441159,-500.0,0.00014899,2]
[408145368,1773173441169,-500.0,0.00014899,2]
[408145369,1773173441178,-500.0,0.00014899,2]
[408145370,1773173441186,-497.49770464,0.00014899,2]
[408145371,1773173441195,-514.59328836,0.00014899,2]
[408145372,1773173441204,-500.0,0.00014899,2]
[408145373,1773173441213,-500.0,0.00014899,2]
[408145374,1773173441223,-500.0,0.00014899,2]
[408145375,1773173441232,-500.0,0.00014899,2]
[408145376,1773173441241,-500.0,0.00014899,2]
[408145377,1773173441250,-500.0,0.00014899,2]
[408145378,1773173441259,-514.19444451,0.00014899,2]
[408145379,1773173441267,-500.0,0.00014899,2]
[408145380,1773173441558,-500.0,0.00014899,2]
[408145381,1773173441568,-500.0,0.00014899,2]
[408145382,1773173441577,-500.0,0.00014899,2]
[408145383,1773173441585,-500.0,0.00014899,2]
[408145384,1773173441595,-500.0,0.00014899,2]
[408145385,1773173441604,-500.0,0.00014899,2]
[408145386,1773173441614,-500.0,0.00014899,2]
[408145387,1773173441623,-362.30142625,0.00014899,2]
[408145388,1773173441632,-500.0,0.00014899,2]
[408145389,1773173441645,-500.0,0.00014899,2]
[408145390,1773173441654,-500.0,0.00014899,2]
[408145391,1773173441664,-500.0,0.00014899,2]
[408145392,1773173441672,-522.2,0.00014899,2]
[408145393,1773173441683,-500.0,0.00014899,2]
[408145394,1773173441692,-500.0,0.00014899,2]
[408145395,1773173441701,-500.0,0.00014899,2]
[408145396,1773173441710,-500.0,0.00014899,2]
[408145397,1773173441721,-521.62861803,0.00014899,2]
[408145398,1773173441731,-6600.0,0.000149,5]
[408145399,1773173441740,-4000.0,0.00014972,2]
[408145400,1773173441750,-6163.28143983,0.00014995,2]
[408145401,1773173441758,-457.0,0.00015,2]
[408145402,1773173441767,-500.0,0.00015,30]
[408145403,1773173441776,-500.0,0.00015,30]
[408145404,1773173441786,-500.0,0.00015,30]
[408145405,1773173441795,-508.83800334,0.00015,30]
[408145406,1773173441804,-500.0,0.00015,30]
[408145407,1773173441814,-500.0,0.00015,30]
[408145408,1773173441823,-500.0,0.00015,30]
[408145409,1773173441833,-500.0,0.00015,30]
[408145410,1773173441843,-500.0,0.00015,30]
[408145411,1773173441853,-500.0,0.00015,30]
[408145412,1773173441862,-500.0,0.00015,30]
[408145413,1773173441872,-500.0,0.00015,30]
[408145414,1773173441881,-500.0,0.00015,30]
[408145415,1773173441891,-500.0,0.00015,30]
[408145416,1773173441900,-500.0,0.00015,30]
[408145417,1773173441909,-500.0,0.00015,30]
[408145418,1773173441919,-502.65445064,0.00015,30]
[408145419,1773173441929,-500.0,0.00015,30]
[408145420,1773173441938,-500.0,0.00015,30]
[408145421,1773173441947,-500.0,0.00015,30]
[408145422,1773173441957,-783.06526647,0.00015,30]
[408145423,1773173441966,-500.0,0.00015,30]
[408145424,1773173441976,-500.0,0.00015,30]
[408145425,1773173441985,-500.0,0.00015,30]
[408145426,1773173441995,-500.0,0.00015,30]
[408145427,1773173442004,-156.93,0.00015074,2]
[408145428,1773173442013,-246.34,0.000151,2]
[408145429,1773173442022,-500.0,0.00015121,2]
[408145430,1773173442031,-1000.0,0.00015121,2]
[408145431,1773173442040,-1000.0,0.00015121,2]
[408145432,1773173442050,-1000.0,0.00015121,2]
[408145433,1773173442059,-1000.0,0.00015121,2]
[408145434,1773173442067,-1000.0,0.00015121,2]
[408145435,1773173442077,-1000.0,0.00015121,2]
[408145436,1773173442086,-1000.0,0.00015121,2]
[408145437,1773173442096,-1000.0,0.00015121,2]
[408145438,1773173442104,-1000.0,0.00015121,2]
[408145439,1773173442113,-1000.0,0.00015221,2]
[408145440,1773173442124,-1000.0,0.00015221,2]
[408145441,1773173442134,-1000.0,0.00015221,2]
[408145442,1773173442143,-1000.0,0.00015221,2]
[408145443,1773173442153,-1000.0,0.00015221,2]
[408145444,1773173442162,-1000.0,0.00015221,2]
[408145445,1773173442171,-1000.0,0.00015221,2]
[408145446,1773173442179,-1000.0,0.00015221,2]
[408145447,1773173442188,-596.36617318,0.00015221,2]
[408145448,1773173442197,-1000.0,0.00015221,2]
[408145449,1773173442206,-283.50907219,0.00015221,2]
[408145450,1773173442215,-1000.0,0.00015221,2]
[408145451,1773173442226,-1000.0,0.00015221,2]
[408145452,1773173442235,-1000.0,0.00015221,2]
[408145453,1773173442243,-1000.0,0.00015221,2]
[408145454,1773173442252,-1000.0,0.00015221,2]
[408145455,1773173442261,-1000.0,0.00015221,2]
[408145456,1773173442270,-1000.0,0.00015221,2]
[408145457,1773173442279,-1000.0,0.00015221,2]
[408145458,1773173442288,-723.08526517,0.00015221,2]
[408145459,1773173442297,-1000.0,0.00015221,2]
[408145460,1773173442306,-1000.0,0.00015221,2]
[408145461,1773173442315,-1000.0,0.00015221,2]
[408145462,1773173442324,-1000.0,0.00015221,2]
[408145463,1773173442334,-1000.0,0.00015221,2]
[408145464,1773173442343,-1000.0,0.00015221,2]